bitfinex-derivatives/quotes_SOLF0:USTF0_20250516
["timestamp","ask_amount","ask_price","bid_price","bid_amount"]
[1747382791766,5.8139,171.97,171.92,5.8151]
[1747382791962,1.9792,172.0,171.93,2.23717853]
[1747382792163,1.9792,172.0,171.94,2.23717853]
[1747382792362,1.9792,172.0,171.95,2.23717853]
[1747382792562,1.9792,172.0,171.96,2.23717853]
[1747382792763,5.8129,171.99,171.97,2.23717853]
[1747382792966,5.8129,171.99,171.98,2.23717853]
[1747382797664,5.814,171.96,171.86,11.6345]
[1747382797863,5.814,171.96,171.87,2.24033521]
[1747382798062,5.8137,171.97,171.93,5.8149]
[1747382798364,1.8665,172.01,171.94,2.24033521]
[1747382798566,5.8131,171.99,171.95,8.05443521]
[1747382798866,5.8131,171.99,171.96,2.24033521]
[1747382799165,1.8665,172.01,171.97,2.24033521]
[1747382799465,1.8665,172.01,171.98,2.24033521]
[1747382799666,5.8125,172.0,171.99,2.24033521]
[1747382800964,5.8121,172.02,171.99,2.24033521]
[1747382801266,227.37026254,172.03,172.0,2.24350178]
[1747382801462,227.37026254,172.03,172.01,2.24350178]
[1747382801667,233.18196254,172.03,172.02,2.24350178]
[1747382805166,5.812,172.02,171.98,5.813]
[1747382805360,5.812,172.02,171.99,2.24266663]
[1747382805565,5.812,172.02,172.0,2.24266663]
[1747382805863,5.812,172.02,172.01,2.24266663]
[1747382807765,227.37026254,172.03,172.01,2.24266663]
[1747382808061,227.37026254,172.03,172.02,2.24266663]
[1747382808768,233.18176254,172.03,172.02,2.24266663]
[1747382808971,233.18176254,172.03,172.02,2.24151144]
[1747382810572,227.37026254,172.03,172.02,2.24151144]
[1747382812672,227.37026254,172.03,172.02,2.24060933]
[1747382813073,233.18176254,172.03,172.02,2.24060933]
[1747382817769,227.37026254,172.03,172.02,2.24060933]
[1747382819478,227.37026254,172.03,171.92,11.6305]
[1747382819875,227.37026254,172.03,172.01,5.812]
[1747382820079,233.18196254,172.03,171.92,11.6305]
[1747382820375,227.37026254,172.03,171.92,11.6305]
[1747382820573,227.37026254,172.03,172.0,5.8122]
[1747382820771,227.37026254,172.03,171.92,11.6305]
[1747382820978,11.6164,172.13,171.91,1.987]
[1747382821378,5.8105,172.07,171.91,1.987]
[1747382821787,5.8099,172.08,171.91,1.987]
[1747382822082,17.46,172.16,171.91,1.987]
[1747382822280,5.7045,172.17,171.91,1.987]
[1747382822477,5.8102,172.07,172.03,5.8114]
[1747382822679,5.7045,172.17,172.04,2.23824266]
[1747382822880,5.8105,172.06,172.05,2.23824266]
[1747382825891,11.6145,172.16,172.05,2.23824266]
[1747382826186,11.6145,172.16,172.06,2.23824266]
[1747382826383,11.6145,172.16,172.07,2.23824266]
[1747382826586,5.8096,172.09,172.08,2.23476829]
[1747382829192,5.8092,172.1,172.08,2.23476829]
[1747382829386,5.8092,172.1,171.97,1.9169]
[1747382829690,5.8092,172.1,172.05,5.8106]
[1747382829890,5.8092,172.1,172.06,2.2341397]
[1747382830087,5.8092,172.1,172.07,2.2341397]
[1747382830286,5.8092,172.1,171.97,1.9169]
[1747382830487,5.8092,172.1,171.98,2.23399491]
[1747382830687,5.8092,172.1,171.99,2.23399491]
[1747382830889,5.8092,172.1,172.0,2.23399491]
[1747382831090,5.8095,172.09,172.01,2.23399491]
[1747382831291,5.8095,172.09,172.02,4.17869491]
[1747382831491,5.8095,172.09,172.05,5.8105]
[1747382831692,5.8095,172.09,172.06,2.23399491]
[1747382831986,5.8095,172.09,172.07,2.23399491]
[1747382832189,5.8095,172.09,172.08,2.23399491]
[1747382832389,5.8092,172.1,172.08,2.23399491]
[1747382832592,5.8092,172.1,172.09,2.23399491]
[1747382833995,5.8092,172.1,172.05,5.8107]
[1747382834198,23.1645,172.17,172.06,8.04330633]
[1747382834494,5.7045,172.17,172.07,2.23290633]
[1747382834694,5.7045,172.17,172.11,5.8086]
[1747382834890,5.7045,172.17,172.12,2.23290633]
[1747382835092,5.7045,172.17,172.13,2.23290633]
[1747382835394,5.7045,172.17,172.14,2.23290633]
[1747382835598,5.7045,172.17,172.03,3.7759]
[1747382835791,5.8072,172.16,172.12,5.8083]
[1747382835992,5.8072,172.16,172.13,2.23135372]
[1747382836192,5.8072,172.16,172.14,2.23135372]
[1747382836391,9.6062,172.17,172.13,5.8081]
[1747382836595,3.7993,172.17,172.14,2.23059704]
[1747382836886,3.7993,172.17,172.15,2.23049145]
[1747382837092,3.7993,172.17,172.14,5.8077]
[1747382837287,3.7993,172.17,172.04,11.6218]
[1747382837488,3.7993,172.17,172.03,3.7759]
[1747382837489,5.8064,172.19,172.03,3.7759]
[1747382837686,21.3735,172.23,172.14,5.8076]
[1747382837892,3.9135,172.23,172.15,2.23057727]
[1747382838097,5.8061,172.2,172.16,2.23057727]
[1747382838396,3.9135,172.23,172.17,2.23057727]
[1747382838595,5.8057,172.21,172.07,11.6203]
[1747382838790,5.8057,172.21,172.17,5.8068]
[1747382838997,5.8057,172.21,172.18,2.22863207]
[1747382839300,3.9135,172.23,172.15,5.8072]
[1747382839496,3.9135,172.23,172.16,2.22701075]
[1747382839692,3.9135,172.23,172.17,2.22701377]
[1747382839893,5.806,172.2,172.18,2.22701377]
[1747382840089,5.806,172.2,172.16,5.8071]
[1747382840294,5.806,172.2,172.17,2.22701377]
[1747382840493,5.806,172.2,172.18,2.22701377]
[1747382840694,5.806,172.2,172.16,5.8071]
[1747382840894,5.806,172.2,172.17,2.22576675]
[1747382841195,5.806,172.2,172.18,2.22576675]
[1747382841394,5.8061,172.19,172.16,5.8071]
[1747382841594,3.9135,172.23,172.17,2.22471888]
[1747382841795,3.9135,172.23,172.16,5.8071]
[1747382841988,3.9135,172.23,172.17,8.03140989]
[1747382842188,3.9135,172.23,172.17,5.8067]
[1747382842599,5.8058,172.21,172.17,5.8067]
[1747382843100,355.26603522,172.28,172.18,2.22385177]
[1747382843300,5.8046,172.24,172.1,11.6183]
[1747382843598,5.8046,172.24,172.11,2.22287835]
[1747382843798,1.8717,172.27,172.12,2.22287835]
[1747382843995,1.8717,172.27,172.13,13.83897835]
[1747382844300,5.804,172.26,172.14,4.14317835]
[1747382844601,5.804,172.26,172.15,2.22287835]
[1747382844794,5.804,172.26,172.16,2.22287835]
[1747382845098,5.8041,172.25,172.22,5.805]
[1747382845299,355.26603522,172.28,172.17,3.7347]
[1747382845600,355.26603522,172.28,172.2,5.8055]
[1747382845798,355.26603522,172.28,172.17,3.7347]
[1747382845995,3.9387,172.27,172.17,1.8109]
[1747382846195,5.806,172.2,172.14,1.9203]
[1747382846596,5.806,172.2,172.15,2.22160674]
[1747382846795,5.8056,172.21,172.16,2.22160674]
[1747382846992,17.46,172.36,172.17,2.22160674]
[1747382847197,17.46,172.39,172.18,5.95630674]
[1747382847402,1.9195,172.38,172.19,2.22160674]
[1747382847600,1.9195,172.38,172.2,2.22160674]
[1747382847801,1.9195,172.38,172.21,4.16590674]
[1747382848007,5.8023,172.31,172.27,5.8034]
[1747382848198,5.8023,172.31,172.28,2.22160674]
[1747382848502,5.8023,172.31,172.28,5.803]
[1747382848705,5.8024,172.3,172.21,1.9443]
[1747382848905,5.8024,172.3,172.22,2.21522821]
[1747382849101,1.9195,172.38,172.27,5.8031]
[1747382849296,1.9195,172.38,172.21,1.9443]
[1747382849603,1.9195,172.38,172.27,5.8032]
[1747382849991,1.9195,172.38,172.21,1.9443]
[1747382850193,1.9195,172.38,172.26,5.8037]
[1747382850503,5.8023,172.31,172.26,5.8037]
[1747382850804,5.8023,172.31,172.27,5.8034]
[1747382851507,1.9195,172.38,172.28,5.803]
[1747382852113,1.9195,172.38,172.29,5.8027]
[1747382852613,5.8016,172.33,172.29,5.8027]
[1747382852811,1.9195,172.38,172.28,5.803]
[1747382854716,5.8021,172.32,172.27,5.8033]
[1747382854919,5.8021,172.32,172.23,2.20668074]
[1747382855110,1.9195,172.38,172.24,2.20668074]
[1747382855311,1.9195,172.38,172.21,1.9443]
[1747382855720,5.8026,172.3,172.25,5.8038]
[1747382856015,5.8026,172.3,172.21,1.9443]
[1747382856214,5.8024,172.31,172.26,5.8035]
[1747382856415,1.9195,172.38,172.26,5.8035]
[1747382857016,5.8024,172.31,172.26,5.8035]
[1747382857317,1.9195,172.38,172.26,5.8035]
[1747382858218,5.8026,172.3,172.26,5.8035]
[1747382859018,5.8022,172.31,172.27,5.8034]
[1747382859233,1.9195,172.38,172.23,2.20634291]
[1747382859416,1.9195,172.38,172.24,2.20634291]
[1747382859717,5.802,172.32,172.28,5.8031]
[1747382863621,1.9195,172.38,172.29,5.8025]
[1747382863822,1.9195,172.38,172.21,1.9443]
[1747382864022,1.9195,172.38,172.22,2.20777866]
[1747382864223,5.8023,172.31,172.27,5.8034]
[1747382864523,5.8023,172.31,172.24,2.20777866]
[1747382864822,5.8023,172.31,172.25,2.20777866]
[1747382865026,5.8018,172.32,172.28,5.8028]
[1747382865223,1.9195,172.38,172.28,5.8028]
[1747382865423,5.8019,172.32,172.28,5.8028]
[1747382866323,5.8016,172.33,172.29,5.8026]
[1747382866524,1.9195,172.38,172.22,2.21264908]
[1747382866716,1.9195,172.38,172.23,2.21264908]
[1747382866918,1.9195,172.38,172.24,2.21264908]
[1747382867219,5.8018,172.32,172.28,5.8028]
[1747382867525,1.9195,172.38,172.28,5.8028]
[1747382868120,5.802,172.32,172.28,5.8028]
[1747382869119,1.9195,172.38,172.22,2.21307123]
[1747382869326,1.9195,172.38,172.23,2.21307123]
[1747382869528,5.8013,172.34,172.3,5.8023]
[1747382870125,5.8013,172.34,172.27,2.21307123]
[1747382870326,5.8009,172.35,172.24,1.8884]
[1747382870519,1.9195,172.38,172.25,2.21423564]
[1747382870721,1.9195,172.38,172.31,5.8018]
[1747382871320,5.8004,172.36,172.32,5.8017]
[1747382871731,5.8001,172.37,172.26,2.21479676]
[1747382871925,5.8001,172.37,172.27,2.21479676]
[1747382872127,5.8001,172.37,172.28,2.21479676]
[1747382872326,1.9195,172.38,172.29,2.21479676]
[1747382872626,5.8005,172.36,172.32,5.8014]
[1747382872820,5.8005,172.36,172.26,2.21553527]
[1747382873024,5.8002,172.37,172.27,2.21553527]
[1747382873223,3.9387,172.4,172.28,1.9362]
[1747382873422,3.9387,172.4,172.35,5.8005]
[1747382873632,5.7998,172.38,172.35,5.8005]
[1747382875421,17.46,172.46,172.34,5.801]
[1747382875628,17.46,172.46,172.35,2.21757781]
[1747382875823,17.46,172.46,172.28,1.9362]
[1747382876028,5.7998,172.38,172.29,2.21757781]
[1747382876228,17.46,172.46,172.3,2.21757781]
[1747382876432,17.46,172.46,172.31,5.99857781]
[1747382876628,5.7994,172.39,172.36,5.8002]
[1747382877234,5.7992,172.4,172.36,5.8002]
[1747382877937,5.7996,172.39,172.35,5.8005]
[1747382878135,5.7996,172.39,172.36,2.22033359]
[1747382878334,5.7996,172.39,172.31,3.781]
[1747382878534,5.7996,172.39,172.32,2.2220425]
[1747382878730,5.7992,172.4,172.33,2.2220425]
[1747382878931,5.7992,172.4,172.34,2.2220425]
[1747382879137,5.7992,172.4,172.36,5.8001]
[1747382879338,3.7583,172.47,172.37,2.2220425]
[1747382879540,3.7583,172.47,172.39,5.7991]
[1747382879837,5.7979,172.44,172.4,2.2220425]
[1747382880036,5.7979,172.44,172.41,2.2220425]
[1747382880237,5.7979,172.44,172.31,3.781]
[1747382880438,3.7583,172.47,172.32,2.22295622]
[1747382880637,3.7583,172.47,172.36,5.8001]
[1747382881039,3.7583,172.47,172.31,3.781]
[1747382881239,21.2183,172.47,172.31,3.781]
[1747382881440,5.8006,172.36,172.28,1.9362]
[1747382881636,29.0543,172.46,172.32,5.8015]
[1747382881835,29.0543,172.46,172.28,1.9362]
[1747382882036,5.8004,172.37,172.28,1.9362]
[1747382882237,17.46,172.44,172.28,1.9362]
[1747382882540,5.8001,172.38,172.29,2.22791551]
[1747382882741,17.46,172.44,172.3,2.22791551]
[1747382882943,17.46,172.44,172.31,2.22791551]
[1747382883139,5.7996,172.39,172.32,2.22791551]
[1747382883331,17.46,172.46,172.33,2.22791551]
[1747382883538,17.46,172.46,172.34,2.22791551]
[1747382883735,17.46,172.46,172.37,5.7999]
[1747382884034,17.46,172.46,172.38,2.22857445]
[1747382884236,17.46,172.46,172.39,2.22857445]
[1747382884539,3.7583,172.47,172.4,2.22725953]
[1747382884739,5.7989,172.41,172.28,1.9362]
[1747382884931,5.7989,172.41,172.29,2.22725868]
[1747382885133,5.7989,172.41,172.3,2.22725868]
[1747382885332,21.2183,172.47,172.31,2.22725868]
[1747382885531,21.2183,172.47,172.33,5.8013]
[1747382885730,21.2183,172.47,172.34,2.22816631]
[1747382886043,21.2183,172.47,172.35,2.22816631]
[1747382886240,21.2183,172.47,172.36,2.22816631]
[1747382886443,5.7992,172.4,172.37,2.22816631]
[1747382886741,5.7992,172.4,172.38,2.22816631]
[1747382886940,5.7992,172.4,172.39,2.22816631]
[1747382887941,21.2183,172.47,172.39,2.22816631]
[1747382888136,21.2183,172.47,172.4,2.22816631]
[1747382888441,21.2183,172.47,172.41,2.22816631]
[1747382888636,21.2183,172.47,172.28,13.5424]
[1747382888839,21.2183,172.47,172.29,2.23158242]
[1747382889042,21.2183,172.47,172.3,2.23158242]
[1747382889244,5.799,172.41,172.31,2.23158242]
[1747382889536,5.799,172.41,172.28,13.5424]
[1747382889537,5.799,172.41,172.32,5.92858242]
[1747382889738,5.799,172.41,172.37,5.7999]
[1747382889938,5.799,172.41,172.38,2.23158242]
[1747382890139,5.799,172.4,172.39,2.23158242]
[1747382891140,5.799,172.4,172.39,2.23211903]
[1747382891333,5.799,172.4,172.36,5.8002]
[1747382891534,5.799,172.4,172.37,2.23183192]
[1747382891741,5.799,172.4,172.38,2.23183192]
[1747382891938,5.7989,172.41,172.39,2.23183192]
[1747382892242,21.2183,172.47,172.4,2.23183192]
[1747382892440,21.2183,172.47,172.41,2.23183192]
[1747382892641,21.2183,172.47,172.42,2.23183192]
[1747382892842,21.2183,172.47,172.38,5.7995]
[1747382893145,5.7986,172.42,172.39,2.23147986]
[1747382893444,21.2183,172.47,172.4,2.23147986]
[1747382893745,5.7985,172.42,172.41,2.23147986]
[1747382895240,5.7988,172.41,172.32,3.697]
[1747382895444,21.2183,172.47,172.33,2.23065801]
[1747382895747,21.2183,172.47,172.34,2.23065801]
[1747382895940,21.2183,172.47,172.35,2.23065801]
[1747382896140,21.2183,172.47,172.36,2.23065801]
[1747382896348,21.2183,172.47,172.37,2.23065801]
[1747382896548,21.2183,172.47,172.38,2.23065801]
[1747382896736,21.2183,172.47,172.39,2.23065801]
[1747382896940,21.2183,172.47,172.4,2.23065801]
[1747382897142,21.2183,172.47,172.41,2.2306555]
[1747382897348,3.7583,172.47,172.42,2.2306555]
[1747382897540,3.7583,172.47,172.32,3.697]
[1747382897740,3.7583,172.47,172.33,2.23048059]
[1747382898037,3.7583,172.47,172.34,2.23048059]
[1747382898337,3.7583,172.47,172.35,2.23048059]
[1747382898536,3.7583,172.47,172.36,8.03088059]
[1747382898537,5.799,172.41,172.36,8.03088059]
[1747382898745,5.799,172.41,172.37,2.23048059]
[1747382898944,3.7583,172.47,172.38,2.23048059]
[1747382899146,3.7583,172.47,172.39,2.23048059]
[1747382899446,3.7583,172.47,172.4,2.23048059]
[1747382899648,3.7583,172.47,172.41,2.23048059]
[1747382899843,5.7988,172.41,172.36,5.8004]
[1747382900147,3.7583,172.47,172.37,8.03032531]
[1747382900350,3.7583,172.47,172.38,2.23052531]
[1747382900648,3.7583,172.47,172.39,2.23052531]
[1747382900850,3.7583,172.47,172.4,2.23052531]
[1747382901152,5.7987,172.42,172.41,2.23052531]
[1747382901550,3.7583,172.47,172.41,2.23052531]
[1747382901755,5.7981,172.43,172.42,2.23052531]
[1747382903350,5.7987,172.41,172.32,3.697]
[1747382903650,3.7583,172.47,172.33,2.23139638]
[1747382903848,5.7981,172.43,172.34,2.23139638]
[1747382904054,5.7981,172.43,172.39,5.7994]
[1747382904352,5.7981,172.43,172.4,2.23139638]
[1747382904552,5.7981,172.43,172.41,2.23139638]
[1747382904753,5.7981,172.43,172.42,2.23139638]
[1747382906645,5.7987,172.41,172.32,3.697]
[1747382906846,3.7583,172.47,172.33,2.2322578]
[1747382907047,3.7583,172.47,172.39,5.7994]
[1747382907244,3.7583,172.47,172.4,2.23225824]
[1747382907448,3.7583,172.47,172.41,2.23225824]
[1747382907654,3.7583,172.47,172.42,2.23225824]
[1747382907852,3.7583,172.47,172.43,2.23225824]
[1747382908051,3.7583,172.47,172.39,5.7994]
[1747382908258,5.798,172.44,172.4,8.03115505]
[1747382908559,5.798,172.44,172.41,2.23215505]
[1747382908760,3.7583,172.47,172.42,2.23215505]
[1747382908955,3.7583,172.47,172.43,2.23215505]
[1747382909160,3.7583,172.47,172.32,15.3004]
[1747382909458,5.7978,172.44,172.4,5.7988]
[1747382909661,5.7978,172.44,172.41,2.23321332]
[1747382909858,5.7978,172.44,172.42,2.23321332]
[1747382910059,5.7978,172.44,172.43,2.23321332]
[1747382910862,5.7989,172.41,172.37,5.8]
[1747382911162,21.2183,172.47,172.38,2.2324263]
[1747382911462,5.7989,172.41,172.39,2.2324263]
[1747382911652,5.7989,172.41,172.4,2.2324263]
[1747382916065,5.7989,172.41,172.37,5.8001]
[1747382916265,5.7989,172.41,172.38,8.03925746]
[1747382916466,5.7989,172.41,172.39,2.23955746]
[1747382916762,5.7989,172.41,172.4,2.23955746]
[1747382918067,5.7989,172.41,172.4,2.24200501]
[1747382918267,5.7985,172.42,172.4,2.24200501]
[1747382918464,5.7985,172.42,172.41,2.24200501]
[1747382921765,59.84,172.44,172.41,2.24200501]
[1747382921955,59.84,172.44,172.42,2.24452505]
[1747382922158,59.84,172.44,172.43,2.24452505]
[1747382923162,59.84,172.44,172.43,2.24474017]
[1747382924174,63.2783,172.47,172.43,2.24474017]
[1747382924467,59.52,172.47,172.44,2.24474017]
[1747382924668,59.52,172.47,172.45,2.24474017]
[1747382924868,59.52,172.47,172.46,2.24474017]
[1747382925567,59.52,172.47,172.46,2.24399021]
[1747382927356,59.52,172.47,172.36,59.5]
[1747382927561,1.8158,172.46,172.36,59.5]
[1747382931464,3.7332,172.46,172.36,59.5]
[1747382932570,5.6835,172.46,172.36,59.5]
[1747382936072,59.34,172.45,172.36,59.5]
[1747382936271,59.5,172.44,172.36,59.5]
[1747382939477,59.5,172.44,172.37,2.18627105]
[1747382939676,59.5,172.44,172.38,2.18627105]
[1747382939873,59.5,172.44,172.39,2.18627105]
[1747382940077,59.5,172.44,172.4,2.18627105]
[1747382940276,59.5,172.44,172.36,59.5]
[1747382940277,59.5,172.44,172.41,2.18627105]
[1747382940479,59.5,172.44,172.42,2.18627105]
[1747382940681,59.5,172.44,172.36,59.5]
[1747382940883,59.5,172.44,172.37,2.18324439]
[1747382941083,59.5,172.44,172.38,2.18324439]
[1747382941286,76.96,172.44,172.39,2.18324439]
[1747382941585,17.46,172.43,172.4,2.18324439]
[1747382941795,17.46,172.43,172.41,2.18324439]
[1747382941995,17.46,172.43,172.42,2.18324439]
[1747382942200,17.46,172.43,172.34,7.7884]
[1747382942797,17.46,172.43,172.34,1.9874]
[1747382943598,5.8,172.38,172.34,1.9874]
[1747382943791,65.02,172.38,172.34,1.9874]
[1747382944096,65.02,172.38,172.32,133.44939483]
[1747382944097,59.22,172.38,172.32,133.44939483]
[1747382944292,59.22,172.38,172.32,7.6081]
[1747382944692,59.22,172.38,172.29,1.8744]
[1747382945200,5.8009,172.35,172.3,5.8022]
[1747382945693,5.8005,172.36,172.3,5.8022]
[1747382945898,59.22,172.38,172.29,1.8744]
[1747382946400,5.8003,172.37,172.32,5.8016]
[1747382946699,5.8003,172.37,172.29,1.8744]
[1747382946893,65.0199,172.38,172.33,5.8012]
[1747382947400,59.22,172.38,172.33,5.8012]
[1747382947801,59.24,172.37,172.34,5.801]
[1747382948002,59.24,172.37,172.29,1.8744]
[1747382948201,59.24,172.37,172.35,5.8005]
[1747382948702,59.24,172.37,172.34,5.8009]
[1747382949097,59.24,172.37,172.29,1.8744]
[1747382949295,5.8006,172.36,172.33,5.8014]
[1747382949603,59.24,172.37,172.33,5.8014]
[1747382949902,65.0403,172.37,172.33,5.8014]
[1747382950303,59.24,172.37,172.33,5.8014]
[1747382951507,65.0402,172.37,172.33,5.8014]
[1747382953411,5.8005,172.36,172.33,5.8014]
[1747382954199,5.8005,172.36,172.34,2.12503256]
[1747382954406,5.8005,172.36,172.35,2.12503256]
[1747382956509,59.24,172.37,172.35,2.12503256]
[1747382956803,59.24,172.37,172.36,2.12503256]
[1747382957505,65.0404,172.37,172.36,2.12437381]
[1747382958805,5.802,172.32,172.27,1.8595]
[1747382959005,5.802,172.32,172.28,5.803]
[1747382959203,59.16,172.33,172.23,59.18]
[1747382959509,5.8025,172.3,172.25,5.8039]
[1747382959908,59.2,172.29,172.23,59.18]
[1747382960206,5.8033,172.28,172.23,59.18]
[1747382960407,59.2,172.29,172.23,59.18]
[1747382960609,5.8035,172.27,172.23,59.18]
[1747382960809,59.2,172.29,172.22,1.8919]
[1747382961112,5.8033,172.28,172.23,5.8046]
[1747382961318,59.2,172.29,172.22,1.8919]
[1747382961812,59.2,172.29,172.27,5.8033]
[1747382962111,59.2,172.29,172.22,1.8919]
[1747382962611,59.2,172.29,172.22,61.1319]
[1747382963006,59.2,172.29,172.27,5.8034]
[1747382963409,59.2,172.29,172.26,5.8036]
[1747382963908,65.0028,172.29,172.26,5.8036]
[1747382964109,59.2,172.29,172.27,5.8032]
[1747382964309,59.24,172.31,172.27,5.8032]
[1747382964514,5.8025,172.3,172.27,5.8032]
[1747382964811,59.24,172.31,172.24,59.2]
[1747382965805,5.803,172.29,172.24,59.2]
[1747382966007,59.24,172.31,172.24,59.2]
[1747382966315,59.2,172.33,172.24,59.2]
[1747382966515,59.26,172.32,172.24,59.2]
[1747382966816,65.0613,172.34,172.24,59.2]
[1747382967117,59.2,172.36,172.24,59.2]
[1747382967309,59.26,172.35,172.24,59.2]
[1747382967505,59.26,172.35,172.33,5.8014]
[1747382968116,59.26,172.35,172.34,5.8011]
[1747382968316,118.56,172.36,172.34,5.8011]
[1747382968611,59.36,172.36,172.3,1.9086]
[1747382968815,65.1604,172.36,172.3,1.9086]
[1747382969416,65.1604,172.36,172.34,5.801]
[1747382969715,59.32,172.38,172.3,1.9086]
[1747382970115,65.1199,172.38,172.35,5.8005]
[1747382971117,5.8002,172.37,172.34,5.8009]
[1747382971618,65.1198,172.38,172.35,5.8007]
[1747382971920,59.32,172.38,172.35,5.8007]
[1747382972114,59.32,172.38,172.3,1.9086]
[1747382972316,5.8001,172.37,172.3,1.9086]
[1747382972820,5.8001,172.37,172.34,5.8008]
[1747382973922,5.8001,172.37,172.3,1.9086]
[1747382973923,5.8004,172.36,172.3,1.9086]
[1747382974216,59.32,172.38,172.29,59.2]
[1747382974921,5.8009,172.35,172.31,5.8019]
[1747382976519,59.32,172.38,172.29,59.2]
[1747382978116,5.801,172.35,172.31,5.8019]
[1747382978321,59.32,172.38,172.31,5.8019]
[1747382978926,5.8004,172.36,172.31,5.8019]
[1747382979125,5.8004,172.36,172.32,5.8017]
[1747382980227,5.8008,172.35,172.32,5.8017]
[1747382980927,5.8005,172.36,172.32,5.8017]
[1747382982231,5.8002,172.37,172.33,5.8013]
[1747382982528,5.8002,172.37,172.29,59.2]
[1747382982730,5.8005,172.36,172.33,5.8011]
[1747382983933,5.8005,172.36,172.32,5.8016]
[1747382984136,5.8008,172.35,172.32,5.8016]
[1747382985236,59.32,172.38,172.29,59.2]
[1747382985629,5.8012,172.34,172.29,59.2]
[1747382986032,59.32,172.38,172.29,59.2]
[1747382986533,59.32,172.38,172.3,5.8022]
[1747382987032,61.2301,172.38,172.3,5.8022]
[1747382987632,5.8008,172.35,172.31,5.802]
[1747382987834,5.8008,172.35,172.29,59.2]
[1747382988029,61.2301,172.38,172.29,59.2]
[1747382988429,5.8009,172.35,172.31,5.802]
[1747382989935,59.02,172.34,172.28,1.8662]
[1747382990124,59.02,172.34,172.26,61.0909]
[1747382990631,5.8016,172.33,172.28,5.803]
[1747382990934,5.8016,172.33,172.26,61.0909]
[1747382991135,5.8016,172.33,172.28,5.8031]
[1747382991532,5.8019,172.32,172.26,61.0909]
[1747382991838,5.8019,172.32,172.27,5.8033]
[1747382992031,5.8022,172.31,172.27,5.8033]
[1747382992438,5.8022,172.31,172.28,5.8031]
[1747382992632,5.8019,172.32,172.28,5.8031]
[1747382993134,59.02,172.34,172.28,5.8031]
[1747382993334,5.8023,172.31,172.27,5.8033]
[1747382993637,59.02,172.34,172.26,61.0909]
[1747382994236,59.02,172.34,172.26,59.1]
[1747382995037,5.802,172.32,172.27,5.8034]
[1747382995740,5.8022,172.31,172.27,5.8034]
[1747382996336,58.94,172.3,172.25,122.07993378]
[1747382996543,58.94,172.29,172.25,122.07993378]
[1747382997342,64.743,172.29,172.25,127.88403378]
[1747382997639,64.743,172.29,172.25,122.07993378]
[1747382998157,58.94,172.29,172.25,122.07993378]
[1747382998955,5.8033,172.28,172.25,122.07993378]
[1747382999759,58.94,172.29,172.23,59.1]
[1747382999958,58.94,172.29,172.2,61.0562]
[1747383000147,5.804,172.26,172.21,5.8053]
[1747383000348,59.06,172.25,172.2,59.12]
[1747383000856,59.06,172.25,172.22,5.8051]
[1747383001056,59.06,172.25,172.2,59.12]
[1747383001356,59.06,172.25,172.17,59.12]
[1747383001558,5.8052,172.22,172.17,59.12]
[1747383001754,59.06,172.25,172.17,59.12]
[1747383001946,5.8048,172.23,172.19,5.806]
[1747383002349,5.8048,172.23,172.17,59.12]
[1747383002552,59.06,172.25,172.17,59.12]
[1747383003156,59.06,172.25,172.23,5.8047]
[1747383004559,64.8642,172.25,172.23,5.8047]
[1747383004756,59.06,172.25,172.23,5.8047]
[1747383005053,59.1,172.28,172.24,5.8044]
[1747383005759,59.1,172.28,172.19,59.1]
[1747383006155,5.8044,172.25,172.19,59.1]